Cogmind - Beta 15 @@@ ROGUE MODE // 2025.08.27 @ 14:55:16 Player: Petvaria Result: Destroyed by MQ-Z2M(h) with Bolt Gun Performance ------------- Evolutions (1) 500 Regions Visited (6) 1200 Robots Destroyed (39) 195 Value Destroyed (941) 941 Prototype IDs (18) 360 Alien Tech Used (0) 0 Bonus (953) 953 TOTAL SCORE: 4149 Bonus ------- Follower Combat Kills 153 Registered with UFD 300 Met Optimus in HQ 500 Cogmind --------- Core Integrity 0/400 Matter 290/300 Energy 80/100 System Corruption 0% Temperature Cool (14) Movement Flying (35) Location -9/Scraptown Parts ------- > --- POWER (1) -------- (None) > --- PROPULSION (3) --- VTOL Module > --- UTILITY (3) ------ (None) > --- WEAPON (2) ------- Companion Sword > --- INVENTORY (5) ---- Deep Structural Scanner Hacking Suite Improved Hacking Suite Peak State ------------ > --- POWER ------------ Improved Ion Engine > --- PROPULSION ------- Improved Flight Unit Improved Flight Unit Improved Flight Unit > --- UTILITY ---------- Field Manipulator Hacking Suite Hacking Suite > --- WEAPON ----------- Datajack Companion Sword > --- INVENTORY -------- VTOL Module VTOL Module Propulsion Shielding Hacking Suite Improved Hacking Suite [Rating: 32] Favorites ----------- Power Ion Engine Engine Ion Engine Propulsion Improved Flight Unit Treads Light Treads Flight Unit Improved Flight Unit Utility Hacking Suite Device Deep Structural Scanner Storage Medium Storage Unit Hackware Hacking Suite Protection Light Armor Plating Weapon Light Assault Rifle Energy Gun Medium Laser Ballistic Gun Light Assault Rifle Slashing Weapon Katana Special Melee Weapon Datajack Build | -11 -10 -10 -9 -9 -9 -9 ------- Run | Yrd Mat Min Mat Sto Rec Scr Slots Evolved 2 | . . . 2 . . . Power . | . . . . . . . Propulsion 1 | . . . 1 . . . Utility 1 | . . . 1 . . . Weapon . | . . . . . . . Parts Attached 49 | 6 1 . 26 5 1 10 Power 6 | 1 . . 2 1 . 2 Engine 6 | 1 . . 2 1 . 2 Core . | . . . . . . . Reactor . | . . . . . . . Propulsion 16 | 2 . . 11 1 . 2 Treads 10 | 2 . . 8 . . . Leg . | . . . . . . . Wheel . | . . . . . . . Hover . | . . . . . . . Flight 6 | . . . 3 1 . 2 Utility 16 | 1 1 . 9 1 1 3 Device 2 | . . . . . . 2 Storage 2 | 1 1 . . . . . Processor . | . . . . . . . Hackware 2 | . . . 2 . . . Protection 10 | . . . 7 1 1 1 Artifact . | . . . . . . . Weapon 11 | 2 . . 4 2 . 3 Energy Gun 2 | . . . 1 1 . . Energy Cannon . | . . . . . . . Ballistic Gun 5 | 2 . . 1 1 . 1 Ballistic Cannon . | . . . . . . . Launcher . | . . . . . . . Special Weapon . | . . . . . . . Impact Weapon . | . . . . . . . Slashing Weapon 3 | . . . 1 . . 2 Piercing Weapon . | . . . . . . . Special Melee Weapon 1 | . . . 1 . . . Unidentified Prototypes 6 | . . . 1 3 . 2 Parts Lost 11 | . . . 2 . . 9 Power 1 | . . . . . . 1 Propulsion 4 | . . . . . . 4 Utility 4 | . . . 1 . . 3 Weapon 2 | . . . 1 . . 1 Highest Loss Streak 9 | . . . 1 . . 9 To Critical Strikes 1 | . . . 1 . . . Average Backups 6 | 2 5 10 8 5 5 4 Power . | . 1 1 . . . . Propulsion 3 | 1 2 7 5 3 2 1 Utility 1 | . . . . 2 2 3 Weapon . | . 1 1 . . . . Tool/Special . | . . . . . . . Unused Backups 7 | . 1 . 3 1 . 2 Power 1 | . . . 1 . . . Propulsion 4 | . 1 . 2 1 . . Utility 2 | . . . . . . 2 Weapon . | . . . . . . . Tool/Special . | . . . . . . . Average Slot Usage (%) 94 | . 85 85 93 100 100 99 Engine 11 | . 14 14 11 11 11 10 Treads 14 | . 28 28 26 . . . Flight 17 | . . . 6 33 33 32 Device 1 | . . . . . . 5 Storage 5 | . 14 14 8 . . . Hackware 10 | . . . 1 22 22 21 Protection 9 | . . . 17 11 11 5 Energy Gun 2 | . . . 5 . . . Ballistic Gun 9 | . 28 28 11 . . . Slashing Weapon 5 | . . . 2 11 11 11 Special Melee Weapon 5 | . . . 2 10 11 10 Peak Build Rating 32 | 6 7 7 24 25 24 32 Average Rating 18 | 4 6 7 16 22 23 25 On Entrance 12 | . 6 7 7 21 23 23 Naked Turns . | . . . . . . . Heaviest Build 32 | 12 17 17 32 14 14 14 Greatest Support 66 | 40 40 40 66 14 15 15 Greatest Overweight (x) 2 | . . . 2 . . . Average Overweight (x) . | . . . . . . . Largest Inventory Capacity 10 | 8 10 10 10 5 5 5 Average Capacity 7 | 7 9 10 9 5 5 5 Most Carried 10 | 4 10 10 10 5 5 5 Average Carried 6 | 2 5 10 8 5 4 4 Final Capacity 10 | 8 10 10 5 5 5 5 Final Carried 10 | 4 10 10 5 5 5 3 Class Distribution -------------------- 44% | Mutant 32% | Hacker-Mutant 9% | Hacker-Sprinter 7% | Sprinter 3% | Scavenger-Mutant Dominant Class ---------------- Mutant | -10/Materials Mutant | -10/Mines Mutant | -9/Materials Hacker-Sprinter | -9/Storage Hacker-Sprinter | -9/Recycling Hacker-Mutant | -9/Scraptown Resources | -11 -10 -10 -9 -9 -9 -9 ----------- Run | Yrd Mat Min Mat Sto Rec Scr Matter Collected 954 | 260 36 . 468 79 31 80 Remotely . | . . . . . . . Salvage Created 1558 | . 154 . 1297 107 . . Parts 99 | . 13 . 81 5 . . Haulers Intercepted 9 | . 1 . 6 2 . . Recyclers Shooed 1 | . . . 1 . . . Parts Field Recycled . | . . . . . . . Retrieved Matter . | . . . . . . . Parts Self-Destructed . | . . . . . . . Prevented . | . . . . . . . Kills | -11 -10 -10 -9 -9 -9 -9 ------- Run | Yrd Mat Min Mat Sto Rec Scr Combat Hostiles Destroyed 23 | . 2 . 21 . . . Melee 4 | . . . 4 . . . Guns 18 | . 2 . 16 . . . Classes Destroyed 8 | . 3 . 5 . . . Hauler 9 | . 1 . 6 2 . . Operator 5 | . 1 . 4 . . . Watcher 2 | . . . 2 . . . Swarmer 3 | . . . 3 . . . Grunt 12 | . 2 . 10 . . . Brawler 1 | . . . 1 . . . Duelist 1 | . . . 1 . . . Sentry 6 | . . . 6 . . . Best Kill Streak 4 | . 2 . 4 1 . . Combat Bots Only 4 | . 1 . 4 . . . Max Kills in Single Turn 1 | . 1 . 1 1 . . Gunslinging . | . . . . . . . Exploded . | . . . . . . . Melee 1 | . . . 1 . . . Uniques/NPCs Destroyed . | . . . . . . . Combat | -11 -10 -10 -9 -9 -9 -9 -------- Run | Yrd Mat Min Mat Sto Rec Scr Hostile Shots Fired 246 | . 3 . 135 28 . 80 Missed 74 | . 2 . 29 12 . 31 Hits 172 | . 1 . 106 16 . 49 Melee 4 | . . . 4 . . . Projectile 168 | . 1 . 102 16 . 49 Critical Strikes 4 | . . . 4 . . . Damage Taken 2162 | . 11 . 1354 220 . 577 Core 416 | . 11 . 136 14 . 255 Absorbed by Shields . | . . . . . . . Redirected to Shielding 25 | . . . . . . 25 Core Remaining (%) 97 | 100 . 95 . . . . Volleys Fired 108 | . 13 . 95 . . . Largest 2 | . 2 . 2 . . . Hottest 73 | . 40 . 73 . . . Shots Fired 210 | . 26 . 184 . . . Gun 210 | . 26 . 184 . . . Cannon . | . . . . . . . Launcher . | . . . . . . . Special . | . . . . . . . Kinetic 150 | . 26 . 124 . . . Thermal 60 | . . . 60 . . . Explosive . | . . . . . . . Electromagnetic . | . . . . . . . Robot Hit Streak 15 | . 4 . 15 . . . Robot Miss Streak 5 | . 3 . 5 . . . Penetration Max . | . . . . . . . Secondary Targets 3 | . . . 3 . . . Max Gunslinging Chain 1 | . . . 1 . . . Shots Hit Robots 170 | . 14 . 149 5 . 2 Core Hits 70 | . 8 . 60 2 . . Critical Kills . | . . . . . . . Critical Parts Destroyed 1 | . . . 1 . . . Critical Strikes 6 | . . . 6 . . . Burn 5 | . . . 5 . . . Destroy 1 | . . . 1 . . . Melee Attacks 46 | . . . 31 8 . 7 Impact . | . . . . . . . Slashing 43 | . . . 31 7 . 5 Piercing . | . . . . . . . Sneak Attacks 12 | . . . 6 4 . 2 Combat Hostiles 1 | . . . 1 . . . Follow-up Attacks . | . . . . . . . Damage Inflicted 2653 | . 127 . 2286 240 . . Guns 1436 | . 127 . 1309 . . . Cannons . | . . . . . . . Explosions . | . . . . . . . Melee 1217 | . . . 977 240 . . Ramming . | . . . . . . . Kinetic 911 | . 127 . 784 . . . Thermal 525 | . . . 525 . . . Explosive . | . . . . . . . Electromagnetic . | . . . . . . . Impact . | . . . . . . . Slashing 1217 | . . . 977 240 . . Piercing . | . . . . . . . Highest Corruption 2 | . . . 1 2 2 . Average Corruption 1 | . . . 1 1 2 . Corruption Purged . | . . . . . . . Corruption Blocked . | . . . . . . . Effects 6 | . . . . 6 . . Message Errors 1 | . . . . 1 . . Heat Flow Errors 2 | . . . . 2 . . Energy Discharges 1 | . . . . 1 . . Parts Rejected 1 | . . . . 1 . . Data Loss (major) 1 | . . . . 1 . . Overload Shots . | . . . . . . . Overflow Damage 64 | . . . 37 27 . . Projectiles . | . . . . . . . Explosions . | . . . . . . . Melee 64 | . . . 37 27 . . Knockbacks . | . . . . . . . Impact . | . . . . . . . Kinetic . | . . . . . . . Secondary . | . . . . . . . Self-Inflicted Damage . | . . . . . . . Shots . | . . . . . . . Rammed . | . . . . . . . Targets Rammed . | . . . . . . . Kicked . | . . . . . . . Crushed . | . . . . . . . Highest Temperature 516 | . 6 . 516 213 . 6 Average Temperature 149 | . 6 . 161 99 . 2 Received Heat Transfer 821 | . 6 . 537 90 . 188 Effects 10 | . . . 10 . . . Shutdowns 2 | . . . 2 . . . Energy Bleed 1 | . . . 1 . . . Interference 2 | . . . 2 . . . Short Circuit 3 | . . . 3 . . . Damage (minor) 2 | . . . 2 . . . Siege Activations . | . . . . . . . Martial Activations . | . . . . . . . Shielding Activations . | . . . . . . . Robots Disrupted . | . . . . . . . Combat Hostiles . | . . . . . . . Robots Corrupted . | . . . . . . . Combat Hostiles . | . . . . . . . Parts Fried . | . . . . . . . Impact Corruptions . | . . . . . . . Robots Melted 1 | . . . 1 . . . Combat Hostiles 1 | . . . 1 . . . Parts Melted 7 | . . . 7 . . . Heat Transferred 1924 | . . . 1924 . . . Parts Sabotaged . | . . . . . . . Parts Stolen . | . . . . . . . Parts Stripped . | . . . . . . . Power Chain Reactions . | . . . . . . . Alert | -11 -10 -10 -9 -9 -9 -9 ------- Run | Yrd Mat Min Mat Sto Rec Scr Maximum Alert Level 1 | . . . 1 . . . Low Security (%) 97 | 100 100 100 94 100 100 . Level 1 2 | . . . 5 . . . Level 2 . | . . . . . . . Level 3 . | . . . . . . . Level 4 . | . . . . . . . Level 5 . | . . . . . . . High Security . | . . . . . . . Max Security . | . . . . . . . Peak Influence 245 | . 27 . 245 79 26 . Initial 74 | . . . . 74 26 . Average 37 | . 3 . 60 19 6 . Influence Increases 1207 | . 62 . 741 399 5 . Destroy 0b10 Robot/C 560 | . 40 . 420 100 . . Destroy 0b10 Robot/NC 80 | . 10 . 60 10 . . Destroy Leader 192 | . 12 . 136 44 . . Allied During Kill 44 | . . . . 44 . . Successful Hack 26 | . . . 16 5 5 . Disable Machine 30 | . . . . 30 . . Destroy Structure 5 | . . . 4 1 . . Partial Spotted 75 | . . . 45 30 . . Lose Combat Pursuer 195 | . . . 60 135 . . Influence Decreases 1207 | . 62 . 565 507 73 . Entered New Map 144 | . . . . 102 42 . Time Decay 574 | . 62 . 395 92 25 . Lost Part 20 | . . . 20 . . . Lost Ally 174 | . . . . 174 . . Purge Threat 295 | . . . 150 139 6 . Squads Dispatched 6 | . 1 . 4 1 . . Investigation 1 | . . . 1 . . . Extermination . | . . . . . . . Reinforcement 5 | . 1 . 3 1 . . Assault . | . . . . . . . Garrison . | . . . . . . . Intercept . | . . . . . . . Searches Triggered . | . . . . . . . Construction Impeded . | . . . . . . . Haulers Reinforced . | . . . . . . . Active Scanning Responses . | . . . . . . . Cargo Convoy Interrupts . | . . . . . . . Stealth | -11 -10 -10 -9 -9 -9 -9 --------- Run | Yrd Mat Min Mat Sto Rec Scr Distress Signals 11 | . . . 9 2 . . Communications Jammed . | . . . . . . . Distress Signals . | . . . . . . . Times Spotted 108 | . 6 . 45 21 . 36 Peak Tracking Total 21 | . 1 . 8 11 . 21 Tactical Retreats 10 | . . . 4 5 . 1 Traps | -11 -10 -10 -9 -9 -9 -9 ------- Run | Yrd Mat Min Mat Sto Rec Scr Traps Triggered 5 | . . . 2 3 . . Indirectly . | . . . . . . . Trap Hack Attempts . | . . . . . . . Triggered . | . . . . . . . Disarmed . | . . . . . . . Reprogrammed . | . . . . . . . Reused . | . . . . . . . Traps Extracted . | . . . . . . . Installed . | . . . . . . . Triggered . | . . . . . . . Machines | -11 -10 -10 -9 -9 -9 -9 ---------- Run | Yrd Mat Min Mat Sto Rec Scr Machines Disabled 4 | . . . . 2 . 2 Max in Single Turn 1 | . . . . 1 . 1 Machines Repaired . | . . . . . . . Machines Dismantled . | . . . . . . . Machines Sabotaged . | . . . . . . . Overloaded Fab Kills . | . . . . . . . Hacking | -11 -10 -10 -9 -9 -9 -9 --------- Run | Yrd Mat Min Mat Sto Rec Scr Machines Accessed 22 | . 2 . 4 6 3 7 Terminals 14 | . 2 . 3 6 3 . Fabricators . | . . . . . . . Repair Stations . | . . . . . . . Recycling Units . | . . . . . . . Scanalyzers 1 | . . . 1 . . . Garrison Access . | . . . . . . . Total Hacks 62 | . 3 . 7 10 5 37 Successful 53 | . 1 . 5 7 3 37 Failed 9 | . 2 . 2 3 2 . Catastrophic 1 | . . . 1 . . . Database Lockouts . | . . . . . . . Manual 16 | . 3 . 5 5 3 . Terminals 23 | . 3 . 5 10 5 . Fabricators . | . . . . . . . Repair Stations . | . . . . . . . Recycling Units . | . . . . . . . Scanalyzers 2 | . . . 2 . . . Garrison Access . | . . . . . . . Terminal Hacks 49 | . . . 2 7 3 37 Record 28 | . . . . . . 28 Robot Analysis 7 | . . . . . . 7 Open Door 5 | . . . . 4 . 1 Unreport Threat 6 | . . . 2 2 2 . Recall Reinforcements 1 | . . . . 1 . . Hauler Manifests 1 | . . . . . 1 . Proto ID Catalog 1 | . . . . . . 1 Fabricator Hacks . | . . . . . . . Repair Station Hacks . | . . . . . . . Recycling Unit Hacks . | . . . . . . . Scanalyzer 2 | . . . 2 . . . Insert Component 1 | . . . 1 . . . Analyze 1 | . . . 1 . . . Garrison Access Hacks . | . . . . . . . Unauthorized Hacks 2 | . 1 . 1 . . . Terminals 2 | . 1 . 1 . . . Operators 2 | . 1 . 1 . . . Fabricators . | . . . . . . . Repair Stations . | . . . . . . . Recycling Units . | . . . . . . . Scanalyzers . | . . . . . . . Garrison Access . | . . . . . . . Data Cores Recovered . | . . . . . . . Used . | . . . . . . . Hacking Detections 5 | . 1 . . 3 1 . Full Trace Events . | . . . . . . . Feedback Events . | . . . . . . . Feedback Blocked . | . . . . . . . Robot Schematics Acquired . | . . . . . . . Robots Built . | . . . . . . . Authchips . | . . . . . . . Time . | . . . . . . . Total Robot Build Rating . | . . . . . . . Part Schematics Acquired 1 | . . . 1 . . . Parts Built . | . . . . . . . Authchips . | . . . . . . . Time . | . . . . . . . Total Part Build Rating . | . . . . . . . Parts Repaired . | . . . . . . . Time . | . . . . . . . Parts Recycled . | . . . . . . . Recycled Matter . | . . . . . . . Retrieved Matter . | . . . . . . . Retrieved Components . | . . . . . . . Parts Scanalyzed 1 | . . . 1 . . . Part Schematics Acquired 1 | . . . 1 . . . Parts Damaged . | . . . . . . . Bothacking | -11 -10 -10 -9 -9 -9 -9 ------------ Run | Yrd Mat Min Mat Sto Rec Scr Used RIF Installer . | . . . . . . . Robots Hacked 2 | . . . . . . 2 Non-combat . | . . . . . . . Combat 2 | . . . . . . 2 Robot Hacks Applied 2 | . . . . . . 2 parse_system 2 | . . . . . . 2 Relay Couplers Released . | . . . . . . . Fabnet Peak Effective % . | . . . . . . . Robots Rewired . | . . . . . . . Allies Hacked . | . . . . . . . Hacks Repelled . | . . . . . . . Allies | -11 -10 -10 -9 -9 -9 -9 -------- Run | Yrd Mat Min Mat Sto Rec Scr Total Allies 10 | . . . . 10 . . Largest Group 10 | . . . . 10 . . Highest-Rated Group 88 | . . . . 88 . . Highest-Rated Ally 16 | . . . . 16 . . Total Orders . | . . . . . . . Ally Attacks 45 | . . . . 45 . . Total Damage 346 | . . . . 346 . . Kills 5 | . . . . 5 . . Allies Corrupted . | . . . . . . . Allies Melted 2 | . . . . . . 2 Intel | -11 -10 -10 -9 -9 -9 -9 ------- Run | Yrd Mat Min Mat Sto Rec Scr Active Infowar (turns) 558 | . . . . . . 558 Structural 558 | . . . . . . 558 Robot Analysis Total 7 | . . . . . . 7 Derelict Logs Recovered 1 | . . 1 . . . . Drone Launches . | . . . . . . . Drone Recoveries . | . . . . . . . Exploration | -11 -10 -10 -9 -9 -9 -9 ------------- Run | Yrd Mat Min Mat Sto Rec Scr Turns Passed 3582 | 90 502 44 1376 276 148 1146 Spaces Moved 4134 | 57 262 28 875 383 430 2099 Core 15 | 15 . . . . . . Treads 802 | 42 262 28 470 . . . Legs . | . . . . . . . Wheels . | . . . . . . . Hover . | . . . . . . . Flight 3317 | . . . 405 383 430 2099 Fastest Speed 32 | 50 160 160 32 32 32 32 Average Speed 57 | 131 160 160 96 32 32 33 Slowest Speed 225 | 160 160 160 225 32 34 35 Overloaded Moves . | . . . . . . . Propulsion Burnouts . | . . . . . . . Robots Hopped 26 | . . . 5 12 5 4 Potential Cave-ins . | . . . . . . . Cave-ins Triggered . | . . . . . . . Exploration Rate (%) 50 | 5 44 15 52 65 82 92 Regions Visited 6 Branch Regions 4 Pre-discovered Areas 5 | . . 1 . . . 4 Known Exits Taken . | . . . . . . . Unknown Exits Taken 6 | 1 1 1 1 1 1 . Scrap Searched 6 | . . . . . . 6 Spaces Dug 7 | . . . 3 1 . 3 Terrain Destroyed 7 | . . . 3 1 . 3 Melee 7 | . . . 3 1 . 3 Projectile . | . . . . . . . AOE . | . . . . . . . Terrain Rammed . | . . . . . . . Walls Destroyed . | . . . . . . . Machines Disabled . | . . . . . . . Actions | -11 -10 -10 -9 -9 -9 -9 --------- Run | Yrd Mat Min Mat Sto Rec Scr Total 5085 | 72 325 27 1195 513 431 2522 Wait 657 | . 40 . 137 84 . 396 Move 4081 | 56 261 27 864 361 419 2093 Hop 21 | . . . 5 9 5 2 Pick Up 29 | 10 8 . 7 . 1 3 Fast Attach 24 | . . . 11 6 1 6 Attach 16 | 6 1 . 5 . . 4 Detach 1 | . . . 1 . . . Swap 18 | . . . 13 2 2 1 Drop 48 | . 2 . 26 7 3 10 Fire 108 | . 13 . 95 . . . Melee 46 | . . . 31 8 . 7 Ram . | . . . . . . . Kick . | . . . . . . . Crush . | . . . . . . . Escape Stasis 36 | . . . . 36 . . Rewire . | . . . . . . . Trap . | . . . . . . . Miscellaneous . | . . . . . . . Route ------- -11/Scrapyard -10/Materials (discovered 2 exits: [*Min x2]) -10/Mines -9/Materials (discovered 4 exits: [*Mat] / [*Min] / *Sto x2) -9/Storage -9/Recycling (discovered 2 exits: [*Fac] / *Scr) -9/Scraptown (discovered 2 exits: *Fac x2) History --------- Turn | Location | Event 32 | -11/Scrapyard | Discovered new exit (range 16) 91 | -11/Scrapyard | Entered Materials 301 | -10/Materials | Build established: Mutant 330 | -10/Materials | Discovered new exit (range 4) 520 | -10/Materials | Discovered new exit (range 15) 593 | -10/Materials | Entered Mines 621 | -10/Mines | Discovered new exit (range 11) 637 | -10/Mines | Entered Materials 637 | -9/Materials | Evolved 2 slots: Propulsion x1, Utility x1 780 | -9/Materials | Discovered new exit (range 5) 1584 | -9/Materials | Discovered new exit (range 9) 1782 | -9/Materials | Discovered new exit (range 16) 1942 | -9/Materials | Discovered new exit (range 5) 2013 | -9/Materials | Entered Storage 2133 | -9/Storage | Assisted by bots powering up and referring to "LRC-V3" 2261 | -9/Storage | Lost 10 allies 2288 | -9/Storage | Used back door to open Recycling access 2288 | -9/Storage | Discovered new exit (range 5) 2289 | -9/Storage | Entered Recycling 2384 | -9/Recycling | Scanned before Scraplab entrance 2396 | -9/Recycling | Discovered new exit (range 16) 2433 | -9/Recycling | Entered Scraplab 2436 | -9/Recycling | Discovered new exit (range 3) 2437 | -9/Recycling | Entered Scraptown 2437 | -9/Scraptown | System corruption cleaned by C-Scrubber 2530 | -9/Scraptown | Discovered new exit (range 11) 2557 | -9/Scraptown | Visited IN-MT5's Study 2562 | -9/Scraptown | Visited Red Mages 2573 | -9/Scraptown | Visited Assassins FH 2579 | -9/Scraptown | Visited Cyclists 2665 | -9/Scraptown | Visited Fellowship of the Rings 2670 | -9/Scraptown | Build established: Hacker-Mutant 2682 | -9/Scraptown | Visited SPCMW 2690 | -9/Scraptown | Visited TADAMA 2730 | -9/Scraptown | Visited UFD Registry 2730 | -9/Scraptown | Registered with UFD as "Deathbrain" 2743 | -9/Scraptown | Entered Cyclist Reading Room 2764 | -9/Scraptown | Visited Abandonware Association 2769 | -9/Scraptown | Learned abandonware demo "ERRANTS.EXE" 2769 | -9/Scraptown | Learned abandonware demo "REVENGE.EXE" 2776 | -9/Scraptown | Visited Science Guys 2789 | -9/Scraptown | Visited Junk Cannon Lab 2837 | -9/Scraptown | Visited Scrapoid Pod Storage 2843 | -9/Scraptown | Visited Analyses Database 2850 | -9/Scraptown | Visited Science Testing Area 2854 | -9/Scraptown | Visited Cartography Club 2884 | -9/Scraptown | Learned location of Recycling (-9) 2884 | -9/Scraptown | Learned location of Zion (-7) 2884 | -9/Scraptown | Learned location of Cetus (-6) 2884 | -9/Scraptown | Learned location of Hub_04(d) (-6) 2884 | -9/Scraptown | Learned 8 Materials zone layouts 2884 | -9/Scraptown | Learned 24 Factory zone layouts 2884 | -9/Scraptown | Learned 16 Research zone layouts 2884 | -9/Scraptown | Learned 16 Factory zone layouts 2884 | -9/Scraptown | Learned 4 Mines zone layouts 2884 | -9/Scraptown | Learned 16 Lower Caves zone layouts 2884 | -9/Scraptown | Learned 8 Upper Caves zone layouts 2884 | -9/Scraptown | Learned 16 Proximity Caves zone layouts 2884 | -9/Scraptown | Learned 16 Upper Caves zone layouts 2884 | -9/Scraptown | Learned 4 Hub_04(d) zone layouts 2884 | -9/Scraptown | Learned location of 2 exits from Research 2884 | -9/Scraptown | Learned location of 2 exits from Lower Caves 2884 | -9/Scraptown | Learned location of 2 exits from Proximity Caves 2884 | -9/Scraptown | Identified exit to Factory 2944 | -9/Scraptown | Found Deep Structural Scanner 2958 | -9/Scraptown | Visited Derelict Rescue Squad 2967 | -9/Scraptown | Visited DA-N13 Charitable Foundation 2970 | -9/Scraptown | Found DCF Scrap (29 items) 2980 | -9/Scraptown | Visited Sword Containment 3098 | -9/Scraptown | Met Optimus 3098 | -9/Scraptown | Accepted into 0bPrime 3498 | -9/Scraptown | Civil war broke out across Scraptown 3503 | -9/Scraptown | Found Field Manipulator 3557 | -9/Scraptown | Core integrity fell below 50% 3581 | -9/Scraptown | Core integrity fell below 20% 3583 | -9/Scraptown | Destroyed by MQ-Z2M(h) with Bolt Gun Last Messages --------------- Propulsion Shielding destroyed. E3-1PU(p): "0bPrime is tearing us apart, don't fall for it!" Bolt penetrates Wall. Penetrated by Bolt. Imp. Flight Unit destroyed. Imp. Ion Engine destroyed. VTOL Module destroyed. Penetrated by Bolt. UL-HOM(h) destroyed. Imp. Flight Unit destroyed. Penetrated by Bolt. Bolt penetrates Wall. Identified Enh. Autogun. Dropped Enh. Autogun. Penetrated by Bolt. Machine disabled. US-5TI(g) suffers critical hit (Burn). US-5TI(g) destroyed. Penetrated by Bolt. Map ----- +----------------------------------------------------+ | | | | | | | | | | | | | | | | | ?????????????????????????????????????????????????? | | #?????????????????#########??????????????????????? | | ""????????????????#"" = ##?????????????????????? | | "#???????????????#" <*%! #?###############???##? | | "#??????#####????#"" %[ #?#"""""""""#""""???""#? | | "#?????""""""#???#####g #?#" "#" ?? "#? | | "#???#"" ""#???????# = #?#" """ "#? | | "#???#"" ""#???????#j%[#?#" "#" "" "#? | | ""###?#""" ""#???????# =!#?#" """ "#" " "#? | | #?#"" ""#??????## !%###" "#" "#? | | ###""" """######## ==##"""""" ""#"" """"""#? | | h [[ #? | | *%* #? | | [==[ #? | | ###### ########### !%=##########"" """"#####? | | ###### ######????## !!##????????#" %"#????? | | #""""" """""#####?# %M#########?#" !""#????? | | #" " " #?# [@""""""""#?#" """#????? | | " ""#" " " "### ### " ""#?#" """#????? | | " "#" " " "#"" """ "#?#"""""""#????? | | " "#""""" """""#" ="""==[" ""###########????? | | "###### ######"[%! %! """"""""###########????? | | "#""""" """""#"= ! jj[ ##"""################### | | " ""#" " " "#" "" ################ | | # ###" " " "#" ! #### ## """""" | | # " " "#""""""%% #### ## "" "" | | #####""""" """""#######%! #### """"" ## " " | | ????###### ############ ###"[=""""" ## " " | | ########## ############ ####!% """" ## " " | | ####=*[ ## " " | | % #### ! ## "" "" | | ###############"####"!;%=!#### = ## """""" | | ???????####### ##### =%/*%#### /%! ### | | #####??#####""#######=" !########"" "#### ####### | | """"#??##### # " # % | | "#??##### # " # =%[ ! | | *! "#??####" """""" # [ =%[ | | ] "#??####" =%! | | [! "#??####"" # | | "#??####" # "################ | | "#??####" " # ################# | | ! "#??####" """ # ################# | +----------------------------------------------------+ Best States ------------- Heat Dissipation 28 Energy Generation 14 Energy Capacity 280 Matter Stores 300 Matter Capacity 300 Sight Range 16 Terrain Scan Density 10 Armor Coverage 375 Resistance: EM 15 Propulsion Shielding 33 Evasion (%) 63 Recoil Reduction 3 Offensive Hacking 20 Item Schematics ----------------- Hacking Suite | -9/Materials | Scanalyzed Robot Schematics ------------------ None Fabricated ------------ Nothing Repaired ---------- Nothing Alien Tech Used ----------------- None Achievements -------------- None Challenges ------------ None Game ------ Seed InsulatedHackingScythe Manual? 0 Play Time 00:55:18 Cumulative 145.4 hours Start 2025.08.27 @ 13:54:09 End 2025.08.27 @ 14:55:16 Sessions 1 Manual Loads 0 Difficulty Rogue Special Mode None Game No. 132 Rogue 132 Adventurer 0 Explorer 0 Win Type - Total 6 Types 2/0/2/1/0/0/0/0/0/1 Lore% 82 Gallery% 77 Achievement% 60 Wizard Run 0 Options --------- Layout 1 ASCII 0 Keyboard 0 Movement Numpad Keybinds 0 Fullscreen 1 Font 24/Proggy Map View 50x35 Zoom Use 0% Tactical HUD 0 Map Filters NONE Filters NONE Steam 1 RUN: 1b6ac86f-be77-488e-9b74-9a4f1eee6f8f